bitfinex-derivatives/quotes_ETHF0:USTF0_20250317
["timestamp","ask_amount","ask_price","bid_price","bid_amount"]
[1742170514981,0.00794176,1888.5,1888.4,0.84734]
[1742170515177,4.31824176,1888.5,1888.4,0.84734]
[1742170515489,4.31824176,1888.5,1888.4,3.71054]
[1742170515688,3.47094176,1888.5,1888.4,3.71054]
[1742170515883,4.31824176,1888.5,1888.4,3.71054]
[1742170516280,3.47094176,1888.5,1888.4,4.38560551]
[1742170517290,4.31824176,1888.5,1888.4,4.38560551]
[1742170518991,4.31824176,1888.5,1888.4,3.71054]
[1742170520091,4.31824176,1888.5,1888.4,4.38591022]
[1742170520600,4.31824176,1888.5,1888.4,3.71054]
[1742170521292,4.31824176,1888.5,1888.4,2.8632]
[1742170522187,5.76604176,1888.5,1888.4,2.8632]
[1742170522387,4.31824176,1888.5,1888.4,2.8632]
[1742170526089,0.84739,1888.3,1888.2,6.0]
[1742170526691,0.84743,1888.2,1888.1,0.699]
[1742170526992,4.31043,1888.2,1888.1,0.699]
[1742170527183,0.84752,1888.0,1887.9,0.6748]
[1742170527387,0.84752,1888.0,1887.9,1.3738]
[1742170527688,2.8931,1888.1,1888.0,0.84752]
[1742170527905,0.84752,1888.0,1887.9,1.3738]
[1742170528196,2.19941,1888.1,1887.9,2.89881676]
[1742170528389,2.19941,1888.1,1888.0,1.4117]
[1742170529700,4.31045,1888.2,1888.1,0.84748]
[1742170529896,0.84748,1888.1,1888.0,2.25918]
[1742170530085,0.84748,1888.1,1888.0,2.92380907]
[1742170531000,5.69046,1888.2,1888.1,0.84748]
[1742170531194,3.463,1888.2,1888.1,2.22448]
[1742170531695,4.05522,1888.3,1888.2,0.84743]
[1742170531884,4.05522,1888.3,1888.2,1.55003]
[1742170532289,4.05522,1888.3,1888.2,2.92703]
[1742170534493,3.2078,1888.3,1888.2,2.92703]
[1742170534699,4.05519,1888.3,1888.2,2.92703]
[1742170535000,4.05519,1888.3,1888.2,3.59172918]
[1742170536601,3.2078,1888.3,1888.2,3.59172918]
[1742170536792,4.05519,1888.3,1888.2,3.59172918]
[1742170537195,4.31036,1888.4,1888.3,0.84739]
[1742170537401,5.70746,1888.4,1888.3,2.93369]
[1742170537701,5.70746,1888.4,1888.3,3.59838918]
[1742170540090,1.3971,1888.4,1888.3,3.59838918]
[1742170540296,3.47094176,1888.5,1888.4,0.84734]
[1742170540595,3.47094176,1888.5,1888.4,2.25004]
[1742170541300,0.00794176,1888.5,1888.4,6.12253918]
[1742170544894,32.5658,1889.0,1888.9,0.84712]
[1742170545099,2.90486,1889.1,1889.0,0.84707]
[1742170545299,3.462,1889.1,1889.0,0.84707]
[1742170545896,4.5906,1889.3,1889.0,0.84707]
[1742170546203,8.90750176,1889.3,1889.2,0.84698]
[1742170547298,8.90750176,1889.3,1889.2,2.29818]
[1742170547599,0.00794176,1889.3,1889.2,5.50598]
[1742170547798,0.84686,1889.5,1889.2,5.3373]
[1742170548005,1.3836,1889.5,1889.4,0.84689]
[1742170548205,4.1246,1889.6,1889.5,0.84685]
[1742170548401,4.1246,1889.6,1889.3,1.4512]
[1742170548402,7.51658,1889.7,1889.6,0.8468]
[1742170548903,2.23035,1889.8,1889.6,4.0546]
[1742170549103,3.462,1889.7,1889.6,0.8468]
[1742170549303,0.85465176,1889.8,1889.7,0.84676]
[1742170549513,0.85465176,1889.8,1889.6,1.52508]
[1742170549900,2.29885176,1889.8,1889.6,1.52508]
[1742170550601,2.29885176,1889.8,1889.6,1.52507]
[1742170551002,1.45214176,1889.8,1889.7,0.84676]
[1742170551603,1.45214176,1889.8,1889.6,0.6783]
[1742170551908,0.00794176,1889.8,1889.7,4.05456]
[1742170553106,3.461,1890.2,1889.9,0.84667]
[1742170553307,1.3686,1890.0,1889.9,0.84667]
[1742170555310,0.00794176,1890.1,1890.0,0.84662]
[1742170555514,1.43344176,1890.1,1890.0,0.84662]
[1742170555814,0.00794176,1890.1,1890.0,0.84662]
[1742170556110,0.00794176,1890.1,1890.0,1.54222]
[1742170556902,1.43344176,1890.1,1890.0,1.54222]
[1742170557103,1.43344176,1890.1,1889.9,4.05445]
[1742170557305,1.43344176,1890.1,1889.9,4.05446]
[1742170557505,2.28004176,1890.1,1889.9,4.05446]
[1742170558005,1.3805,1890.0,1889.9,4.05446]
[1742170559116,2.22712,1890.0,1889.9,4.05446]
[1742170559412,1.3805,1890.0,1889.9,4.05446]
[1742170559810,2.22712,1890.0,1889.9,3.2078]
[1742170560011,2.7091,1890.0,1889.9,4.05447]
[1742170560212,2.0426,1890.0,1889.9,4.05447]
[1742170560412,1.3805,1890.0,1889.9,5.38467]
[1742170560616,2.22712,1890.0,1889.9,5.38467]
[1742170563524,1.3805,1890.0,1889.9,5.38467]
[1742170564619,0.85454176,1890.1,1890.0,0.84662]
[1742170564813,2.29334176,1890.1,1890.0,2.17372]
[1742170565720,1.44674176,1890.1,1890.0,2.17372]
[1742170566325,1.44674176,1890.1,1890.0,2.87152]
[1742170567023,2.29332176,1890.1,1890.0,2.87152]
[1742170567222,2.29332176,1890.1,1890.0,1.3271]
[1742170567519,0.84667,1889.9,1889.8,0.84669]
[1742170567723,0.84667,1889.9,1889.8,2.17179]
[1742170568225,2.93137,1889.9,1889.8,2.17179]
[1742170568522,2.0847,1889.9,1889.8,2.17179]
[1742170569115,0.00794176,1890.1,1889.8,1.3251]
[1742170569317,0.84664,1890.0,1889.9,2.17172]
[1742170569713,1.3966,1890.0,1889.9,2.17172]
[1742170570824,2.24322,1890.0,1889.9,2.17172]
[1742170571024,1.3966,1890.0,1889.9,2.17172]
[1742170571213,2.24322,1890.0,1889.9,2.17172]
[1742170571715,1.3966,1890.0,1889.9,2.17172]
[1742170572828,2.24322,1890.0,1889.9,2.17172]
[1742170573325,1.3966,1890.0,1889.9,2.17172]
[1742170573530,0.00794176,1890.1,1890.0,0.84662]
[1742170573824,0.00794176,1890.1,1890.0,1.56152]
[1742170574220,0.00794176,1890.1,1890.0,3.67806653]
[1742170575225,0.00794176,1890.1,1890.0,3.67886462]
[1742170576326,0.00794176,1890.1,1890.0,3.01642]
[1742170578527,1.35494176,1890.1,1890.0,9.01642]
[1742170580029,2.20152176,1890.1,1890.0,8.30152]
[1742170580421,2.20152176,1890.1,1890.0,6.0]
[1742170581124,2.20152176,1890.1,1890.0,7.4484]
[1742170582332,2.20152176,1890.1,1890.0,6.0]
[1742170582928,2.20152176,1890.1,1890.0,7.3799]
[1742170583721,2.20152176,1890.1,1890.0,6.0]
[1742170584433,0.84667,1889.9,1889.8,2.2266]
[1742170584622,4.30467,1889.9,1889.8,0.8467]
[1742170585032,5.73957,1889.9,1889.8,0.8467]
[1742170587529,0.00794176,1890.1,1890.0,0.84662]
[1742170587730,4.90084176,1890.1,1890.0,0.84662]
[1742170588030,3.46594176,1890.1,1890.0,0.84662]
[1742170589838,3.46594176,1890.1,1890.0,4.05442]
[1742170591331,0.00794176,1890.1,1890.0,4.05442]
[1742170595944,4.8593,1890.4,1890.3,0.84649]
[1742170596540,5.70574,1890.4,1890.3,0.84649]
[1742170598047,3.458,1890.4,1890.3,0.84649]
[1742170599548,0.00794176,1890.5,1890.4,0.84644]
[1742170599944,1.38634176,1890.5,1890.4,0.84644]
[1742170600643,2.23274176,1890.5,1890.4,0.84644]
[1742170601248,0.84644,1890.4,1890.3,2.28246]
[1742170601449,2.93224,1890.4,1890.3,2.28246]
[1742170602957,2.0858,1890.4,1890.3,2.28246]
[1742170603761,2.93224,1890.4,1890.3,2.28246]
[1742170604360,2.93224,1890.4,1890.3,1.436]
[1742170604555,0.84649,1890.3,1890.2,4.05432]
[1742170604756,2.83979,1890.3,1890.2,5.41242]
[1742170604956,6.29679,1890.3,1890.2,1.3581]
[1742170605760,0.84658,1890.1,1890.0,4.75469]
[1742170606160,0.84662,1890.0,1889.9,3.8912]
[1742170606360,1.52352,1890.0,1889.9,3.8912]
[1742170606657,4.1339,1890.0,1889.8,0.7003]
[1742170606959,0.84667,1889.9,1889.8,1.54697]
[1742170607169,2.24537,1889.9,1889.8,1.54697]
[1742170608356,2.24537,1889.9,1889.8,2.86607]
[1742170608859,1.3987,1889.9,1889.8,2.86607]
[1742170609162,2.24537,1889.9,1889.8,2.86607]
[1742170610761,5.45317,1889.9,1889.8,1.3191]
[1742170610964,2.94007,1889.9,1889.8,1.3191]
[1742170611163,2.0934,1889.9,1889.5,0.00794176]
[1742170611365,0.8468,1889.6,1889.5,1.32584176]
[1742170612064,1.3481,1889.6,1889.5,2.17267176]
[1742170612457,3.457,1889.7,1889.6,0.8468]
[1742170612658,3.457,1889.7,1889.6,5.3781]
[1742170613769,1.34,1889.8,1889.7,0.84676]
[1742170613960,1.34,1889.8,1889.7,2.86976]
[1742170616160,2.18671,1889.8,1889.7,2.17026]
[1742170617462,0.84676,1889.7,1889.6,4.05458]
[1742170617765,1.3256,1889.7,1889.6,5.41548]
[1742170619064,2.17236,1889.7,1889.6,5.41548]
[1742170619263,1.3256,1889.7,1889.6,5.41548]
[1742170619665,2.17236,1889.7,1889.6,5.41548]
[1742170621569,1.3256,1889.7,1889.6,5.41548]
[1742170621970,2.17236,1889.7,1889.6,5.41548]
[1742170622363,1.3256,1889.7,1889.6,5.41548]
[1742170623671,2.17236,1889.7,1889.6,5.41548]
[1742170626567,1.3256,1889.7,1889.6,5.41548]
[1742170627165,5.71999,1889.9,1889.8,0.84671]
[1742170627472,7.13179,1889.9,1889.8,0.84671]
[1742170627863,7.13179,1889.9,1889.8,1.52021]
[1742170628468,7.13177,1889.9,1889.8,1.52021]
[1742170629368,7.13177,1889.9,1889.8,0.84671]
[1742170629575,0.84671,1889.8,1889.7,1.3926]
[1742170629777,2.29201,1889.8,1889.7,1.3926]
[1742170629978,2.29201,1889.8,1889.6,4.71843573]
[1742170629979,0.84676,1889.7,1889.6,4.71843573]
[1742170630276,2.29206,1889.7,1889.6,6.17283573]
[1742170631972,0.84673,1889.8,1889.7,0.84676]
[1742170632169,0.84673,1889.8,1889.7,2.98176]
[1742170632370,2.23943,1889.8,1889.7,2.98176]
[1742170632877,2.23943,1889.8,1889.7,1.51169068]
[1742170633078,2.23943,1889.8,1889.7,2.12213068]
[1742170633376,2.23943,1889.8,1889.7,0.66493068]
[1742170633779,0.8468,1889.6,1889.5,1.36544176]
[1742170633972,4.3038,1889.6,1889.5,1.36544176]
[1742170634171,4.3038,1889.6,1889.5,2.21229176]
[1742170634372,4.9666,1889.6,1889.5,1.36544176]
[1742170634572,4.9666,1889.6,1889.5,2.03073117]
[1742170634765,8.1744,1889.6,1889.5,0.67323117]
[1742170635165,8.1744,1889.6,1889.5,0.00794176]
[1742170635365,0.84698,1889.2,1889.1,4.7449]
[1742170635565,6.6648,1889.3,1889.1,0.66590195]
[1742170635763,1.50978,1889.2,1889.1,0.66590195]
[1742170635976,0.84712,1888.9,1888.8,3.2078]
[1742170636377,0.84712,1888.9,1888.8,3.8732863]
[1742170636577,2.16842,1888.9,1888.8,0.6654863]
[1742170637278,0.84716,1888.8,1888.7,1.43874176]
[1742170637485,2.17756,1888.8,1888.7,1.43874176]
[1742170638581,2.17756,1888.8,1888.7,0.00794176]
[1742170638978,2.86006,1888.8,1888.7,0.00794176]
[1742170639984,0.84725,1888.6,1888.5,1.4308]
[1742170640178,4.30425,1888.6,1888.5,1.4308]
[1742170640675,5.66875,1888.6,1888.5,1.4308]
[1742170641076,0.84734,1888.4,1888.3,0.84737]
[1742170641276,0.84734,1888.4,1888.3,2.27677]
[1742170642586,0.84734,1888.4,1888.3,1.4294]
[1742170642887,0.84739,1888.3,1888.2,0.00794176]
[1742170643077,5.70639,1888.3,1888.2,1.40364176]
[1742170645688,3.458,1888.3,1888.2,2.25107176]
[1742170649478,0.84736,1888.4,1888.2,2.25107176]
[1742170649685,4.30627,1888.6,1888.3,5.3056]
[1742170649892,4.30627,1888.6,1888.5,0.8473]
[1742170650292,3.459,1888.6,1888.5,1.5686]
[1742170650690,4.30625,1888.6,1888.5,1.5686]
[1742170651084,3.459,1888.6,1888.5,1.5686]
[1742170651284,4.30625,1888.6,1888.5,1.5686]
[1742170651486,3.459,1888.6,1888.5,1.5686]
[1742170651988,0.84725,1888.6,1888.5,1.5686]
[1742170652188,4.30523,1888.7,1888.6,0.84723]
[1742170652483,2.1933,1888.8,1888.7,0.84721]
[1742170652689,5.6513,1888.8,1888.7,0.84721]
[1742170653785,4.3052,1888.8,1888.7,1.54681]
[1742170654286,4.3052,1888.8,1888.7,0.6996]
[1742170654488,5.6659,1888.8,1888.7,0.6996]
[1742170654687,5.6659,1888.8,1888.5,0.7213]
[1742170654688,0.84725,1888.6,1888.5,0.7213]
[1742170654896,0.8473,1888.5,1888.4,1.3627]
[1742170655095,5.7299,1888.5,1888.4,1.3627]
[1742170655295,5.7299,1888.5,1888.4,2.21004]
[1742170655893,0.84734,1888.4,1888.3,6.0]
[1742170656186,0.84739,1888.3,1888.2,1.42804176]
[1742170656399,2.99147,1888.4,1888.3,0.84739]
[1742170656594,0.84739,1888.3,1888.2,1.42804176]
[1742170657099,2.99148,1888.4,1888.3,0.84739]
[1742170657291,0.84738,1888.4,1888.3,0.84739]
[1742170658191,0.84739,1888.3,1888.2,2.27544176]
[1742170659098,2.28919,1888.3,1888.2,2.27544176]
[1742170659494,2.28919,1888.3,1888.2,5.48324176]
[1742170660094,0.6915,1888.4,1888.3,0.84739]
[1742170660095,0.84738,1888.4,1888.3,0.84739]
[1742170660295,0.84738,1888.4,1888.3,1.3531]
[1742170660597,2.28918,1888.4,1888.3,2.20049]
[1742170660795,2.28918,1888.4,1888.3,1.3531]
[1742170661495,2.28918,1888.4,1888.3,2.20049]
[1742170662302,0.84738,1888.4,1888.3,2.20049]
[1742170663194,5.76273,1888.5,1888.4,0.84734]
[1742170663395,0.84727,1888.6,1888.4,2.82684]
[1742170663597,0.84727,1888.6,1888.5,1.5211]
[1742170663800,3.458,1888.6,1888.5,2.8386]
[1742170664207,4.30525,1888.6,1888.5,2.8386]
[1742170664907,4.30525,1888.6,1888.5,1.9913]
[1742170665092,5.01175,1888.6,1888.5,1.9913]
[1742170665292,5.01175,1888.6,1888.5,1.3175]
[1742170665702,5.01175,1888.6,1888.5,2.1648]
[1742170666006,5.01175,1888.6,1888.5,1.3175]
[1742170666607,5.01175,1888.6,1888.5,2.1648]
[1742170666818,4.30525,1888.6,1888.5,2.1648]
[1742170670318,4.30525,1888.6,1888.5,1.3175]
[1742170673921,0.84734,1888.4,1888.3,1.3315]
[1742170674621,2.19864,1888.4,1888.3,2.17889]
[1742170681422,2.19864,1888.4,1888.3,1.3315]
[1742170681623,0.84739,1888.3,1888.2,0.00794176]
[1742170681830,5.61989,1888.3,1888.2,0.00794176]
[1742170682418,5.61989,1888.3,1887.9,3.2078]
[1742170682419,0.84752,1888.0,1887.9,3.2078]
[1742170682736,0.84757,1887.9,1887.8,0.84759]
[1742170683024,2.95037,1887.9,1887.8,0.84759]
[1742170683229,2.95037,1887.9,1887.8,2.16329]
[1742170684430,4.31349176,1888.0,1887.9,0.84757]
[1742170684628,4.31349176,1888.0,1887.9,2.16327]
[1742170685026,5.75409176,1888.0,1887.9,2.16327]
[1742170685839,5.75409176,1888.0,1887.9,1.3157]
[1742170686534,6.43339176,1888.0,1887.9,1.3157]
[1742170687330,5.75409176,1888.0,1887.9,2.16327]
[1742170687528,4.90654176,1888.0,1887.9,2.16327]
[1742170687838,4.31346176,1888.0,1887.9,2.16327]
[1742170688036,0.84761,1887.8,1887.7,0.00794176]
[1742170688233,0.84761,1887.8,1887.7,0.85560176]
[1742170688729,2.84811,1887.8,1887.7,0.85560176]
[1742170689335,2.18721,1887.8,1887.7,0.85560176]
[1742170690036,1.3396,1887.8,1887.7,0.85560176]
[1742170690237,2.18721,1887.8,1887.7,0.85560176]
[1742170690835,1.3396,1887.8,1887.7,0.85560176]
[1742170691739,2.18721,1887.8,1887.7,0.85560176]
[1742170691935,1.3396,1887.8,1887.7,0.85560176]
[1742170692140,4.31348176,1888.0,1887.9,0.84757]
[1742170692639,4.89394176,1888.0,1887.9,0.84757]
[1742170692840,0.00794176,1888.0,1887.9,2.19857]
[1742170693341,0.00794176,1888.0,1887.9,5.40637]
[1742170693342,3.46594176,1888.0,1887.9,5.40637]
[1742170693933,3.46594176,1888.0,1887.9,2.19857]
[1742170694436,4.31346176,1888.0,1887.9,2.19857]
[1742170694638,3.46594176,1888.0,1887.9,2.19857]
[1742170697344,3.46594176,1888.0,1887.9,5.40637]
[1742170698942,4.85264176,1888.0,1887.9,2.19857]
[1742170699534,0.00794176,1888.0,1887.9,2.19857]
[1742170702441,3.458,1888.1,1887.9,1.351]
[1742170702652,3.458,1888.3,1888.2,0.84743]
[1742170703145,2.20625,1888.4,1888.3,0.84739]
[1742170703345,5.66425,1888.4,1888.3,0.84739]
[1742170703546,3.8745,1888.7,1888.5,0.84728]
[1742170703748,0.84731,1888.5,1888.4,0.84731]
[1742170703941,4.30531,1888.5,1888.4,0.84731]
[1742170704338,3.458,1888.5,1888.4,0.84731]
[1742170705047,4.8072,1888.5,1888.4,0.84731]
[1742170705447,0.6667,1888.7,1888.6,0.84725]
[1742170705742,4.8072,1888.7,1888.6,0.84725]
[1742170705951,3.458,1888.7,1888.6,0.84725]
[1742170706247,3.458,1888.7,1888.6,1.56165]
[1742170706444,0.00794176,1888.8,1888.7,0.84721]
[1742170706642,1.35714176,1888.8,1888.7,2.18221]
[1742170710547,2.20430176,1888.8,1888.7,2.18221]
[1742170710845,1.35714176,1888.8,1888.7,2.18221]
[1742170711447,2.20430176,1888.8,1888.7,2.18221]
[1742170711748,1.35714176,1888.8,1888.7,2.18221]
[1742170712248,2.20430176,1888.8,1888.7,2.18221]
[1742170712846,1.35714176,1888.8,1888.7,2.18221]
[1742170713546,2.20430176,1888.8,1888.7,1.335]
[1742170713743,0.84729,1888.6,1888.5,0.84726]
[1742170713944,4.30429,1888.6,1888.5,2.28196]
[1742170714452,5.73049,1888.6,1888.5,2.282]
[1742170715649,4.8832,1888.6,1888.5,2.282]
[1742170716449,5.73045,1888.6,1888.5,2.282]
[1742170717150,0.8473,1888.5,1888.4,4.05512]
[1742170717347,2.2335,1888.5,1888.4,5.45172]
[1742170717648,2.8946,1888.5,1888.4,5.45172]
[1742170720247,0.84743,1888.2,1888.1,3.9044]
[1742170720451,0.84743,1888.2,1888.1,4.524]
[1742170720953,1.4334,1888.2,1888.1,5.37148]
[1742170721146,2.28083,1888.2,1888.1,5.37148]
[1742170721352,1.4334,1888.2,1888.1,5.37148]
[1742170722047,1.4334,1888.2,1888.1,2.16368]
[1742170722552,2.28083,1888.2,1888.1,2.16368]
[1742170723551,2.28083,1888.2,1888.1,1.3162]
[1742170724642,0.84761,1887.8,1887.7,0.00794176]
[1742170725350,1.51991,1887.8,1887.7,0.00794176]
[1742170725755,1.51991,1887.8,1887.7,0.85560176]
[1742170726051,2.0742,1887.8,1887.7,0.85560176]
[1742170726251,2.92181,1887.8,1887.7,0.85560176]
[1742170726952,2.92181,1887.8,1887.7,0.00794176]
[1742170728351,2.92181,1887.8,1887.7,1.34284176]
[1742170729153,2.92181,1887.8,1887.7,2.19050176]
[1742170731354,1.4019,1887.8,1887.7,2.19050176]
[1742170731755,3.9292,1888.0,1887.9,0.84757]
[1742170731946,3.457,1888.1,1888.0,0.84752]
[1742170732143,4.05526,1888.2,1887.8,2.0615]
[1742170732350,0.84746,1888.2,1888.1,0.84748]
[1742170732654,5.72726,1888.2,1888.1,0.84748]
[1742170732856,4.8798,1888.2,1888.1,0.84748]
[1742170733057,5.72723,1888.2,1888.1,0.84748]
[1742170733351,5.72723,1888.2,1888.1,1.53568]
[1742170733850,4.8798,1888.2,1888.1,1.53568]
[1742170734353,5.72723,1888.2,1888.1,1.53568]
[1742170734554,4.8798,1888.2,1888.1,1.53568]
[1742170735252,5.72723,1888.2,1888.1,1.53568]
[1742170737249,5.72623,1888.2,1888.1,1.53568]
[1742170738063,5.72623,1888.2,1888.1,0.6882]
[1742170738652,5.72623,1888.2,1888.1,2.0646]
[1742170739159,5.72623,1888.2,1888.1,1.3764]
[1742170742152,5.72623,1888.2,1888.1,2.22388]
[1742170742559,5.72623,1888.2,1888.1,1.3764]
[1742170743355,5.72623,1888.2,1888.1,2.22388]
[1742170743561,5.72623,1888.2,1888.1,1.3764]
[1742170745473,0.84748,1888.1,1888.0,0.84751]
[1742170745668,2.26788,1888.1,1888.0,2.19751]
[1742170745870,2.26788,1888.1,1888.0,1.35]
[1742170746963,2.26788,1888.1,1888.0,2.19752]
[1742170748869,0.84748,1888.1,1888.0,2.19752]
[1742170749267,4.8508,1888.2,1888.1,0.84748]
[1742170749469,5.69823,1888.2,1888.1,2.16648]
[1742170749665,3.2078,1888.5,1888.1,1.319]
[1742170749971,0.84722,1888.7,1888.6,0.84725]
[1742170750173,29.37794176,1888.8,1888.7,0.84721]
[1742170750174,0.85514176,1888.8,1888.7,0.84721]
[1742170750371,3.46394176,1888.8,1888.7,0.84721]
[1742170750567,4.31110176,1888.8,1888.7,0.84721]
[1742170750777,4.78894176,1888.8,1888.7,0.84721]
[1742170751167,4.31110176,1888.8,1888.7,2.16271]
[1742170752064,4.31110176,1888.8,1888.7,1.3155]
[1742170753173,4.31110176,1888.8,1888.7,2.16271]
[1742170754376,4.31110176,1888.8,1888.7,1.3155]
[1742170754671,4.31110176,1888.8,1888.7,2.16271]
[1742170754876,3.46394176,1888.8,1888.7,2.16271]
[1742170757265,0.00794176,1888.8,1888.7,2.16271]
[1742170757571,6.6628,1889.2,1889.1,0.84703]
[1742170758072,0.84693,1889.4,1888.9,6.65449]
[1742170758274,4.05466,1889.5,1889.1,2.11757]
[1742170758472,1.3996,1889.6,1889.2,4.81444]
[1742170758676,2.25439176,1889.5,1889.4,0.84686]
[1742170758876,0.00794176,1889.5,1889.4,0.84686]
[1742170759072,0.85479176,1889.5,1889.4,0.84686]
[1742170759477,0.84689,1889.4,1889.3,1.3289]
[1742170760577,0.84698,1889.2,1889.1,4.06273176]
[1742170760774,0.84698,1889.2,1889.1,2.29233176]
[1742170761274,2.20588,1889.2,1889.1,2.29233176]
[1742170762568,2.20588,1889.2,1889.1,1.44534176]
[1742170762771,0.84698,1889.2,1889.1,2.29237176]
[1742170765678,0.84698,1889.2,1889.1,1.44534176]
[1742170765873,2.22908,1889.2,1889.1,1.44534176]
[1742170766577,2.22908,1889.2,1889.1,2.29237176]
[1742170766777,2.22908,1889.2,1889.1,1.44534176]
[1742170768587,2.22908,1889.2,1889.1,2.29237176]
[1742170774084,3.21574176,1889.5,1889.1,1.44534176]
[1742170774381,4.06262176,1889.5,1889.4,0.84689]
[1742170774583,8.83602176,1889.5,1889.4,0.84689]
[1742170775086,0.84689,1889.4,1889.3,2.2471]
[1742170776785,2.16729,1889.4,1889.3,2.2471]
[1742170777581,0.00794176,1889.5,1889.4,0.84689]
[1742170778080,0.00794176,1889.5,1889.4,2.22579]
[1742170778689,3.2078,1890.2,1890.0,0.84661]
[1742170778877,3.453,1890.1,1889.8,2.11678]
[1742170779185,4.29958,1890.1,1890.0,0.8466]
[1742170780083,5.74718,1890.1,1890.0,2.2255]
[1742170783091,0.84658,1890.1,1890.0,2.2255]
[1742170783296,5.71138,1890.1,1890.0,2.2255]
[1742170783887,5.71138,1890.1,1890.0,1.3789]
[1742170784093,5.71138,1890.1,1890.0,2.22552]
[1742170784590,5.71138,1890.1,1890.0,1.3789]
[1742170784781,4.8648,1890.1,1889.7,3.2078]
[1742170784986,0.84676,1889.8,1889.7,0.84676]
[1742170785592,0.84676,1889.7,1889.6,6.0]
[1742170785787,2.22446,1889.7,1889.6,0.8468]
[1742170786094,0.84685,1889.5,1889.4,4.05467]
[1742170786294,0.84685,1889.5,1889.4,3.2078]
[1742170787293,0.84685,1889.5,1889.4,4.05469]
[1742170787495,0.84685,1889.5,1889.4,5.40869]
[1742170787789,0.84685,1889.5,1889.4,4.5618]
[1742170787996,0.84685,1889.5,1889.4,5.40869]
[1742170788398,4.29785,1889.5,1889.4,5.40869]
[1742170789198,4.29785,1889.5,1889.4,4.5618]
[1742170789897,4.29785,1889.5,1889.4,5.40869]
[1742170791403,4.29785,1889.5,1889.4,4.5618]
[1742170791798,4.29785,1889.5,1889.4,5.40869]
[1742170791999,4.29785,1889.5,1889.4,4.5618]
[1742170793699,4.29785,1889.5,1889.4,5.40869]
[1742170793904,4.29785,1889.5,1889.4,4.5618]
[1742170794101,4.29785,1889.5,1889.4,5.40869]
[1742170794603,4.29785,1889.5,1889.4,2.20089]
[1742170796097,3.451,1889.5,1889.1,4.06273176]
[1742170796304,0.84698,1889.2,1889.1,3.21574176]
[1742170796494,4.29798,1889.2,1889.1,3.21574176]
[1742170796891,4.29798,1889.2,1889.1,4.60594176]
[1742170797105,5.72968,1889.2,1889.1,5.45297176]
[1742170797305,5.72968,1889.2,1889.1,4.60594176]
[1742170798305,5.72968,1889.2,1889.1,5.45297176]
[1742170799203,5.72968,1889.2,1889.1,4.60594176]
[1742170799508,5.72968,1889.2,1889.1,1.39814176]
[1742170800605,8.93748,1889.2,1889.1,0.00794176]
[1742170801101,5.72968,1889.2,1889.1,2.17157176]
[1742170801706,5.72968,1889.2,1889.1,1.32454176]
[1742170801908,5.72968,1889.2,1889.1,2.17157176]
[1742170802404,1.4317,1889.2,1889.1,1.32454176]
[1742170802608,4.29795,1889.3,1889.1,4.53234176]
[1742170802808,4.29795,1889.3,1889.2,0.84698]
[1742170803011,4.29795,1889.3,1889.2,2.93088]
[1742170803803,4.29794,1889.3,1889.2,2.93088]
[1742170804204,4.5807,1889.7,1889.2,2.0839]
[1742170804403,2.28687,1889.5,1889.4,0.84686]
[1742170804598,2.28687,1889.5,1889.4,1.4516]
[1742170804811,5.49467,1889.5,1889.4,1.4516]
[1742170805013,2.28687,1889.5,1889.4,1.4516]
[1742170805213,2.28687,1889.5,1889.4,2.29849]
[1742170805515,5.49467,1889.5,1889.4,1.4516]
[1742170805700,0.84694,1889.3,1889.2,0.7248]
[1742170805902,0.84698,1889.2,1889.1,0.00794176]
[1742170806102,1.53048,1889.2,1889.1,0.00794176]
[1742170806315,0.6835,1889.2,1889.1,0.85497176]
[1742170806612,0.84698,1889.2,1889.1,0.85493176]
[1742170807015,2.28698,1889.2,1889.1,2.30653176]
[1742170807811,2.28698,1889.2,1889.1,1.45954176]
[1742170809801,5.49478,1889.2,1889.1,0.00794176]
[1742170812810,5.49478,1889.2,1889.1,2.24127176]
[1742170813008,3.2078,1889.2,1889.1,2.94747176]
[1742170813216,4.05471,1889.4,1889.3,0.84691]
[1742170813407,0.84694,1889.3,1889.2,2.23324]
[1742170814113,2.16794,1889.3,1889.2,2.23324]
[1742170814819,2.16794,1889.3,1889.2,1.3863]
[1742170815117,2.16794,1889.3,1889.2,2.23328]
[1742170815317,2.16794,1889.3,1889.2,1.3863]
[1742170815516,0.84698,1889.2,1889.1,0.00794176]
[1742170815717,2.84428,1889.2,1889.1,0.00794176]
[1742170816819,2.84428,1889.2,1889.1,1.39354176]
[1742170817006,2.84428,1889.2,1889.1,0.00794176]
[1742170818821,6.05208,1889.2,1889.1,0.00794176]
[1742170821417,0.84716,1888.8,1888.7,3.2078]
[1742170821624,0.84721,1888.7,1888.6,0.7213]
[1742170821819,1.53341,1888.7,1888.6,0.7213]
[1742170822018,0.8473,1888.5,1888.4,4.77512]
[1742170822224,0.8473,1888.5,1888.4,4.6491]
[1742170822622,4.2983,1888.5,1888.4,4.6491]
[1742170822823,5.7327,1888.5,1888.4,4.6491]
[1742170823025,5.7327,1888.5,1888.4,5.9754]
[1742170823727,5.7327,1888.5,1888.4,6.82274]
[1742170825028,3.451,1888.5,1888.4,6.82274]
[1742170828234,0.00794176,1888.6,1888.5,0.8473]
[1742170828529,0.00794176,1888.6,1888.5,2.2087]
[1742170828727,6.71706,1889.1,1889.0,0.84707]
[1742170828923,0.84706,1889.1,1889.0,0.84707]
[1742170829123,3.452,1889.3,1889.2,0.84694]
[1742170829336,3.2078,1889.4,1889.3,0.84694]
[1742170829632,4.05469,1889.4,1889.3,0.84694]
[1742170829827,0.84689,1889.4,1889.3,0.84694]
[1742170830127,0.00794176,1889.5,1889.4,0.84689]